[Event "Titled Tuesday Blitz August 17 2021"]
[White "Florescu, Codrut-Constantin"]
[Black "Fajdetic, Hrvoje"]
[WhiteFideId "1202200"]
[BlackFideId "14501945"]
[WhiteElo "2243"]
[BlackElo "2153"]
[Result "1/2-1/2"]
[Round "02"]
[TimeControl "180+1"]
[Date "2021.08.18"]
[WhiteClock "0:00:56"]
[BlackClock "0:00:07"]

1. d4 {[%clk 0:03:00]}  e6 {[%clk 0:03:00]} 2. Bf4 {[%clk 0:02:58]}  b6 {[%clk 0:02:57]} 3. e3 {[%clk 0:02:57]}  Bb7 {[%clk 0:02:58]} 4. Nf3 {[%clk 0:02:58]}  f5 {[%clk 0:02:58]} 5. Nbd2 {[%clk 0:02:57]}  Nf6 {[%clk 0:02:58]} 6. h3 {[%clk 0:02:57]}  Bd6 {[%clk 0:02:58]} 7. Bxd6 {[%clk 0:02:56]}  cxd6 {[%clk 0:02:59]} 8. g4 {[%clk 0:02:55]}  fxg4 {[%clk 0:02:48]} 9. hxg4 {[%clk 0:02:55]}  Nxg4 {[%clk 0:02:46]} 10. Bd3 {[%clk 0:02:55]}  Qf6 {[%clk 0:02:14]} 11. Qe2 {[%clk 0:02:42]}  h5 {[%clk 0:01:50]} 12. O-O-O {[%clk 0:02:40]}  Nc6 {[%clk 0:01:49]} 13. Ne4 {[%clk 0:02:25]}  Qe7 {[%clk 0:01:46]} 14. Ba6 {[%clk 0:02:17]}  O-O-O {[%clk 0:01:44]} 15. Bxb7+ {[%clk 0:02:16]}  Kxb7 {[%clk 0:01:45]} 16. Kb1 {[%clk 0:02:12]}  d5 {[%clk 0:01:40]} 17. Ng3 {[%clk 0:02:12]}  g6 {[%clk 0:01:37]} 18. Nh4 {[%clk 0:02:08]}  Qg5 {[%clk 0:01:23]} 19. f4 {[%clk 0:02:03]}  Qf6 {[%clk 0:01:12]} 20. Nf3 {[%clk 0:02:00]}  d6 {[%clk 0:01:06]} 21. Rdg1 {[%clk 0:01:45]}  Na5 {[%clk 0:01:01]} 22. b3 {[%clk 0:01:45]}  Rc8 {[%clk 0:00:57]} 23. Nf1 {[%clk 0:01:40]}  Rc3 {[%clk 0:00:48]} 24. Rxg4 {[%clk 0:01:39]}  hxg4 {[%clk 0:00:48]} 25. Rxh8 {[%clk 0:01:36]}  Qxh8 {[%clk 0:00:42]} 26. Ng5 {[%clk 0:01:35]}  Qh1 {[%clk 0:00:28]} 27. Kb2 {[%clk 0:01:33]}  Rc8 {[%clk 0:00:15]} 28. Nf7 {[%clk 0:01:20]}  Rc6 {[%clk 0:00:12]} 29. Nd8+ {[%clk 0:01:20]}  Kc7 {[%clk 0:00:12]} 30. Nxc6 {[%clk 0:01:20]}  Nxc6 {[%clk 0:00:12]} 31. Qf2 {[%clk 0:01:20]}  Qf3 {[%clk 0:00:11]} 32. Qxf3 {[%clk 0:01:15]}  gxf3 {[%clk 0:00:12]} 33. c3 {[%clk 0:01:15]}  e5 {[%clk 0:00:12]} 34. fxe5 {[%clk 0:01:10]}  dxe5 {[%clk 0:00:12]} 35. dxe5 {[%clk 0:01:11]}  Nxe5 {[%clk 0:00:11]} 36. Kc2 {[%clk 0:01:11]}  g5 {[%clk 0:00:11]} 37. Kd2 {[%clk 0:01:11]}  g4 {[%clk 0:00:11]} 38. Ng3 {[%clk 0:01:12]}  Kd6 {[%clk 0:00:09]} 39. e4 {[%clk 0:01:10]}  dxe4 {[%clk 0:00:06]} 40. Ke3 {[%clk 0:01:11]}  Nc6 {[%clk 0:00:03]} 41. Kxe4 {[%clk 0:01:08]}  a5 {[%clk 0:00:04]} 42. Kf4 {[%clk 0:01:08]}  f2 {[%clk 0:00:04]} 43. Kxg4 {[%clk 0:01:07]}  Ne5+ {[%clk 0:00:04]} 44. Kf4 {[%clk 0:01:05]}  Nd3+ {[%clk 0:00:04]} 45. Ke3 {[%clk 0:01:04]}  Nc1 {[%clk 0:00:05]} 46. Kxf2 {[%clk 0:01:03]}  Nxa2 {[%clk 0:00:06]} 47. Ke3 {[%clk 0:01:03]}  Nxc3 {[%clk 0:00:06]} 48. Kd3 {[%clk 0:01:02]}  Nb5 {[%clk 0:00:07]} 49. Kc4 {[%clk 0:01:00]}  Kc6 {[%clk 0:00:08]} 50. Ne2 {[%clk 0:00:57]}  Nd6+ {[%clk 0:00:09]} 51. Kc3 {[%clk 0:00:57]}  b5 {[%clk 0:00:08]} 52. Kd4 {[%clk 0:00:57]}  Nf5+ {[%clk 0:00:08]} 53. Ke5 {[%clk 0:00:57]}  Ne7 {[%clk 0:00:07]} 54. Kd4 {[%clk 0:00:56]}  Nf5+ {[%clk 0:00:07]} 55. Ke5 {[%clk 0:00:56]}  Ne7 {[%clk 0:00:07]} 56. Kd4 {[%clk 0:00:56]}  Nf5+ {[%clk 0:00:07]} 1/2-1/2


[Site "https://www.chess.com"]

[Event "Titled Tuesday Blitz August 17 2021"]
[White "Gerzhoy, Leonid"]
[Black "Murzin, Volodar"]
[WhiteFideId "2806126"]
[BlackFideId "44155573"]
[WhiteElo "2510"]
[BlackElo "2541"]
[Result "1-0"]
[Round "02"]
[TimeControl "180+1"]
[Date "2021.08.17"]
[WhiteClock "0:00:15"]
[BlackClock "0:00:03"]

1. d4 {[%clk 0:03:00]}  d5 {[%clk 0:02:59]} 2. c4 {[%clk 0:03:00]}  c6 {[%clk 0:02:59]} 3. cxd5 {[%clk 0:02:59]}  cxd5 {[%clk 0:03:00]} 4. Nc3 {[%clk 0:02:59]}  e6 {[%clk 0:03:00]} 5. Nf3 {[%clk 0:02:58]}  Nc6 {[%clk 0:02:59]} 6. Bf4 {[%clk 0:02:58]}  Bd6 {[%clk 0:02:59]} 7. Bg3 {[%clk 0:02:57]}  Nge7 {[%clk 0:02:59]} 8. e3 {[%clk 0:02:56]}  Nf5 {[%clk 0:02:58]} 9. Bd3 {[%clk 0:02:56]}  Nxg3 {[%clk 0:02:58]} 10. hxg3 {[%clk 0:02:56]}  Bd7 {[%clk 0:02:56]} 11. Rc1 {[%clk 0:02:54]}  a6 {[%clk 0:02:43]} 12. O-O {[%clk 0:02:50]}  f5 {[%clk 0:02:40]} 13. Na4 {[%clk 0:02:48]}  b6 {[%clk 0:02:25]} 14. a3 {[%clk 0:02:36]}  O-O {[%clk 0:02:25]} 15. b4 {[%clk 0:02:34]}  g5 {[%clk 0:02:21]} 16. b5 {[%clk 0:02:24]}  Na5 {[%clk 0:02:10]} 17. bxa6 {[%clk 0:02:09]}  Nc4 {[%clk 0:02:04]} 18. Bxc4 {[%clk 0:02:07]}  dxc4 {[%clk 0:02:04]} 19. Ne5 {[%clk 0:01:52]}  Bxe5 {[%clk 0:02:02]} 20. dxe5 {[%clk 0:01:51]}  Rxa6 {[%clk 0:02:02]} 21. Nc3 {[%clk 0:01:40]}  Bc6 {[%clk 0:02:02]} 22. Qh5 {[%clk 0:01:23]}  Rxa3 {[%clk 0:01:54]} 23. Rfd1 {[%clk 0:01:21]}  Qe7 {[%clk 0:01:51]} 24. Rd6 {[%clk 0:01:19]}  Be8 {[%clk 0:01:46]} 25. Qh6 {[%clk 0:01:17]}  Bg6 {[%clk 0:01:14]} 26. Nb5 {[%clk 0:01:15]}  Ra5 {[%clk 0:01:09]} 27. Nd4 {[%clk 0:01:08]}  Rxe5 {[%clk 0:01:05]} 28. Rxb6 {[%clk 0:01:07]}  Qd7 {[%clk 0:00:12]} 29. Rxc4 {[%clk 0:00:56]}  Re4 {[%clk 0:00:11]} 30. Rcb4 {[%clk 0:00:42]}  Qe7 {[%clk 0:00:10]} 31. Rb8 {[%clk 0:00:33]}  e5 {[%clk 0:00:04]} 32. Rxf8+ {[%clk 0:00:32]}  Qxf8 {[%clk 0:00:04]} 33. Qxf8+ {[%clk 0:00:32]}  Kxf8 {[%clk 0:00:05]} 34. Ne6+ {[%clk 0:00:31]}  Ke8 {[%clk 0:00:05]} 35. Rxe4 {[%clk 0:00:29]}  fxe4 {[%clk 0:00:04]} 36. Nxg5 {[%clk 0:00:29]}  Ke7 {[%clk 0:00:04]} 37. f3 {[%clk 0:00:28]}  Kf6 {[%clk 0:00:02]} 38. Nxe4+ {[%clk 0:00:26]}  Bxe4 {[%clk 0:00:03]} 39. fxe4 {[%clk 0:00:26]}  Kg5 {[%clk 0:00:03]} 40. Kf1 {[%clk 0:00:16]}  Kg4 {[%clk 0:00:03]} 41. Kf2 {[%clk 0:00:16]}  h6 {[%clk 0:00:02]} 42. Kf1 {[%clk 0:00:15]}  Kxg3 {[%clk 0:00:03]} 43. Kg1 {[%clk 0:00:15]}  h5 {[%clk 0:00:03]} 44. Kf1 {[%clk 0:00:15]} 1-0


[Site "https://www.chess.com"]

[Event "Titled Tuesday Blitz August 17 2021"]
[White "Girinath, P.D.S."]
[Black "Primbetov, Kazbek"]
[WhiteFideId "5000572"]
[BlackFideId "13702297"]
[WhiteElo "2333"]
[BlackElo "2184"]
[Result "0-1"]
[Round "02"]
[TimeControl "180+1"]
[Date "2021.08.18"]
[WhiteClock "0:00:05"]
[BlackClock "0:00:35"]

1. e4 {[%clk 0:03:00]}  e6 {[%clk 0:02:59]} 2. d3 {[%clk 0:02:59]}  d5 {[%clk 0:02:59]} 3. Nd2 {[%clk 0:03:00]}  Nc6 {[%clk 0:02:59]} 4. Ngf3 {[%clk 0:02:59]}  Nf6 {[%clk 0:03:00]} 5. c3 {[%clk 0:02:58]}  e5 {[%clk 0:02:57]} 6. g3 {[%clk 0:02:51]}  a5 {[%clk 0:02:53]} 7. Bg2 {[%clk 0:02:42]}  dxe4 {[%clk 0:02:49]} 8. dxe4 {[%clk 0:02:40]}  Bc5 {[%clk 0:02:49]} 9. O-O {[%clk 0:02:12]}  O-O {[%clk 0:02:44]} 10. Nb3 {[%clk 0:01:08]}  Bb6 {[%clk 0:02:13]} 11. Qxd8 {[%clk 0:01:02]}  Rxd8 {[%clk 0:02:10]} 12. Bg5 {[%clk 0:01:03]}  Be6 {[%clk 0:02:02]} 13. Bxf6 {[%clk 0:00:51]}  gxf6 {[%clk 0:02:01]} 14. Rad1 {[%clk 0:00:51]}  a4 {[%clk 0:02:00]} 15. Nc1 {[%clk 0:00:51]}  Na5 {[%clk 0:01:39]} 16. Rfe1 {[%clk 0:00:30]}  Nc4 {[%clk 0:01:25]} 17. Nd3 {[%clk 0:00:29]}  Kf8 {[%clk 0:01:00]} 18. Bf1 {[%clk 0:00:24]}  Ke7 {[%clk 0:00:57]} 19. Nh4 {[%clk 0:00:24]}  a3 {[%clk 0:00:40]} 20. b3 {[%clk 0:00:20]}  Nb2 {[%clk 0:00:40]} 21. Nxb2 {[%clk 0:00:11]}  axb2 {[%clk 0:00:41]} 22. Rxd8 {[%clk 0:00:10]}  Kxd8 {[%clk 0:00:39]} 23. Rb1 {[%clk 0:00:09]}  Rxa2 {[%clk 0:00:38]} 24. Bc4 {[%clk 0:00:05]}  Ra1 {[%clk 0:00:35]} 0-1


[Site "https://www.chess.com"]

[Event "Titled Tuesday Blitz August 17 2021"]
[White "Gutman, Joshua"]
[Black "Ronka, Erik"]
[WhiteFideId "2025680"]
[BlackFideId "505080"]
[WhiteElo "2206"]
[BlackElo "2264"]
[Result "0-1"]
[Round "02"]
[TimeControl "180+1"]
[Date "2021.08.18"]
[WhiteClock "0:00:30"]
[BlackClock "0:00:20"]

1. d4 {[%clk 0:03:00]}  d5 {[%clk 0:02:59]} 2. c4 {[%clk 0:03:00]}  e6 {[%clk 0:03:00]} 3. Nf3 {[%clk 0:03:00]}  a6 {[%clk 0:03:00]} 4. g3 {[%clk 0:03:01]}  dxc4 {[%clk 0:03:00]} 5. Bg2 {[%clk 0:03:02]}  b5 {[%clk 0:03:00]} 6. O-O {[%clk 0:03:03]}  Bb7 {[%clk 0:03:00]} 7. a4 {[%clk 0:03:03]}  Nf6 {[%clk 0:02:57]} 8. axb5 {[%clk 0:03:03]}  axb5 {[%clk 0:02:58]} 9. Rxa8 {[%clk 0:03:03]}  Bxa8 {[%clk 0:02:58]} 10. b3 {[%clk 0:03:04]}  cxb3 {[%clk 0:02:45]} 11. Qxb3 {[%clk 0:03:02]}  b4 {[%clk 0:02:43]} 12. Bg5 {[%clk 0:03:01]}  Nbd7 {[%clk 0:02:39]} 13. Rc1 {[%clk 0:02:57]}  Be7 {[%clk 0:02:35]} 14. Qc4 {[%clk 0:02:22]}  c5 {[%clk 0:02:11]} 15. dxc5 {[%clk 0:02:21]}  Bxc5 {[%clk 0:02:08]} 16. Rd1 {[%clk 0:02:13]}  Bd5 {[%clk 0:02:04]} 17. Qb5 {[%clk 0:02:03]}  Qb6 {[%clk 0:02:02]} 18. Qxb6 {[%clk 0:01:47]}  Bxb6 {[%clk 0:01:54]} 19. Nd4 {[%clk 0:01:39]}  O-O {[%clk 0:01:42]} 20. Bxd5 {[%clk 0:01:38]}  Nxd5 {[%clk 0:01:43]} 21. e4 {[%clk 0:01:35]}  N5f6 {[%clk 0:01:29]} 22. Nf3 {[%clk 0:01:16]}  Nc5 {[%clk 0:01:15]} 23. Bxf6 {[%clk 0:01:10]}  gxf6 {[%clk 0:01:16]} 24. Nfd2 {[%clk 0:01:08]}  Rd8 {[%clk 0:01:02]} 25. Rc1 {[%clk 0:01:08]}  Nd3 {[%clk 0:01:01]} 26. Rc6 {[%clk 0:01:07]}  Bxf2+ {[%clk 0:00:59]} 27. Kf1 {[%clk 0:01:06]}  Be3 {[%clk 0:00:54]} 28. Ke2 {[%clk 0:01:06]}  Bxd2 {[%clk 0:00:53]} 29. Nxd2 {[%clk 0:01:06]}  Ne5 {[%clk 0:00:53]} 30. Rc7 {[%clk 0:01:00]}  Rb8 {[%clk 0:00:47]} 31. Nb3 {[%clk 0:01:00]}  Kg7 {[%clk 0:00:45]} 32. Ke3 {[%clk 0:00:57]}  Kg6 {[%clk 0:00:45]} 33. Kd4 {[%clk 0:00:57]}  Nf3+ {[%clk 0:00:44]} 34. Kc5 {[%clk 0:00:56]}  Nxh2 {[%clk 0:00:43]} 35. Na5 {[%clk 0:00:47]}  b3 {[%clk 0:00:42]} 36. Nc6 {[%clk 0:00:47]}  b2 {[%clk 0:00:40]} 37. Nxb8 {[%clk 0:00:43]}  b1=Q {[%clk 0:00:40]} 38. Nd7 {[%clk 0:00:44]}  Qxe4 {[%clk 0:00:30]} 39. Kd6 {[%clk 0:00:42]}  Qd5+ {[%clk 0:00:30]} 40. Ke7 {[%clk 0:00:42]}  Ng4 {[%clk 0:00:24]} 41. Nf8+ {[%clk 0:00:38]}  Kg7 {[%clk 0:00:23]} 42. Nd7 {[%clk 0:00:36]}  Ne5 {[%clk 0:00:22]} 43. Nf8 {[%clk 0:00:31]}  Nc6+ {[%clk 0:00:21]} 44. Ke8 {[%clk 0:00:30]}  Qd8# {[%clk 0:00:20]} 0-1


[Site "https://www.chess.com"]

[Event "Titled Tuesday Blitz August 17 2021"]
[White "Holt, Conrad"]
[Black "Maiorov, Nikita"]
[WhiteFideId "2034387"]
[BlackFideId "13501720"]
[WhiteElo "2586"]
[BlackElo "2440"]
[Result "1-0"]
[Round "02"]
[TimeControl "180+1"]
[Date "2021.08.17"]
[WhiteClock "0:01:51"]
[BlackClock "0:00:58"]

1. d4 {[%clk 0:03:00]}  Nf6 {[%clk 0:02:59]} 2. c4 {[%clk 0:03:00]}  e6 {[%clk 0:02:58]} 3. Nc3 {[%clk 0:03:00]}  Bb4 {[%clk 0:02:57]} 4. Qc2 {[%clk 0:03:01]}  Nc6 {[%clk 0:02:50]} 5. Nf3 {[%clk 0:03:00]}  d6 {[%clk 0:02:50]} 6. Bd2 {[%clk 0:03:00]}  O-O {[%clk 0:02:48]} 7. a3 {[%clk 0:03:00]}  Bxc3 {[%clk 0:02:48]} 8. Bxc3 {[%clk 0:03:01]}  a5 {[%clk 0:02:43]} 9. Rd1 {[%clk 0:02:51]}  Qe7 {[%clk 0:02:43]} 10. e4 {[%clk 0:02:47]}  e5 {[%clk 0:02:42]} 11. d5 {[%clk 0:02:46]}  Nb8 {[%clk 0:02:42]} 12. c5 {[%clk 0:02:42]}  Bg4 {[%clk 0:02:33]} 13. cxd6 {[%clk 0:02:39]}  cxd6 {[%clk 0:02:32]} 14. Be2 {[%clk 0:02:39]}  Nbd7 {[%clk 0:02:30]} 15. Nh4 {[%clk 0:02:19]}  Bxe2 {[%clk 0:02:12]} 16. Qxe2 {[%clk 0:02:18]}  Nc5 {[%clk 0:02:11]} 17. Nf5 {[%clk 0:02:17]}  Qd7 {[%clk 0:02:10]} 18. f3 {[%clk 0:02:03]}  Kh8 {[%clk 0:02:05]} 19. O-O {[%clk 0:02:01]}  Nh5 {[%clk 0:01:44]} 20. f4 {[%clk 0:01:57]}  Nf6 {[%clk 0:01:12]} 21. Nxd6 {[%clk 0:01:52]}  Qxd6 {[%clk 0:00:58]} 22. fxe5 {[%clk 0:01:51]} 1-0


[Site "https://www.chess.com"]

[Event "Titled Tuesday Blitz August 17 2021"]
[White "Ibarra Jerez, Jose Carlos"]
[Black "De Silva, L M S T"]
[WhiteFideId "2226332"]
[BlackFideId "9953698"]
[WhiteElo "2602"]
[BlackElo "1621"]
[Result "1-0"]
[Round "02"]
[TimeControl "180+1"]
[Date "2021.08.17"]
[WhiteClock "0:02:03"]
[BlackClock "0:02:05"]

1. e4 {[%clk 0:03:00]}  e5 {[%clk 0:03:00]} 2. Nf3 {[%clk 0:02:58]}  Nc6 {[%clk 0:03:00]} 3. d4 {[%clk 0:02:56]}  exd4 {[%clk 0:03:00]} 4. Nxd4 {[%clk 0:02:55]}  Qf6 {[%clk 0:03:00]} 5. Nb3 {[%clk 0:02:48]}  Qg6 {[%clk 0:02:59]} 6. f3 {[%clk 0:02:44]}  Nf6 {[%clk 0:02:40]} 7. Bf4 {[%clk 0:02:39]}  d6 {[%clk 0:02:35]} 8. Nc3 {[%clk 0:02:33]}  Bd7 {[%clk 0:02:30]} 9. Qd2 {[%clk 0:02:30]}  O-O-O {[%clk 0:02:30]} 10. O-O-O {[%clk 0:02:28]}  Ne5 {[%clk 0:02:30]} 11. Qe3 {[%clk 0:02:16]}  Kb8 {[%clk 0:02:24]} 12. g4 {[%clk 0:02:08]}  Bc6 {[%clk 0:02:05]} 13. Bxe5 {[%clk 0:02:03]} 1-0


[Site "https://www.chess.com"]

[Event "Titled Tuesday Blitz August 17 2021"]
[White "Iskusnyh, Sergei"]
[Black "Vargas, Gabriela"]
[WhiteFideId "4120027"]
[BlackFideId "3700860"]
[WhiteElo "2492"]
[BlackElo "2116"]
[Result "0-1"]
[Round "02"]
[TimeControl "180+1"]
[Date "2021.08.18"]
[WhiteClock "0:00:01"]
[BlackClock "0:01:17"]

1. d4 {[%clk 0:03:00]}  d5 {[%clk 0:02:59]} 2. c4 {[%clk 0:02:59]}  c6 {[%clk 0:02:59]} 3. Nf3 {[%clk 0:02:57]}  e6 {[%clk 0:02:59]} 4. b3 {[%clk 0:02:55]}  Nf6 {[%clk 0:02:59]} 5. e3 {[%clk 0:02:54]}  Bd6 {[%clk 0:03:00]} 6. Bd3 {[%clk 0:02:54]}  O-O {[%clk 0:03:00]} 7. Bb2 {[%clk 0:02:54]}  Nbd7 {[%clk 0:03:00]} 8. Ne5 {[%clk 0:02:53]}  a5 {[%clk 0:02:59]} 9. O-O {[%clk 0:02:50]}  a4 {[%clk 0:02:58]} 10. f4 {[%clk 0:02:48]}  Ne4 {[%clk 0:02:57]} 11. Nd2 {[%clk 0:02:47]}  f5 {[%clk 0:02:57]} 12. Nxe4 {[%clk 0:01:52]}  fxe4 {[%clk 0:02:54]} 13. Be2 {[%clk 0:01:51]}  Nxe5 {[%clk 0:02:47]} 14. fxe5 {[%clk 0:01:51]}  Rxf1+ {[%clk 0:02:43]} 15. Qxf1 {[%clk 0:01:50]}  Bb4 {[%clk 0:02:36]} 16. bxa4 {[%clk 0:00:38]}  Bd2 {[%clk 0:02:30]} 17. Qf2 {[%clk 0:00:36]}  Qg5 {[%clk 0:02:26]} 18. Bc1 {[%clk 0:00:36]}  Bxc1 {[%clk 0:02:24]} 19. Rxc1 {[%clk 0:00:36]}  Rxa4 {[%clk 0:02:23]} 20. Rf1 {[%clk 0:00:36]}  Qe7 {[%clk 0:02:20]} 21. cxd5 {[%clk 0:00:27]}  exd5 {[%clk 0:02:12]} 22. Bd1 {[%clk 0:00:24]}  Ra3 {[%clk 0:02:08]} 23. Bb3 {[%clk 0:00:23]}  Be6 {[%clk 0:02:07]} 24. h3 {[%clk 0:00:19]}  h6 {[%clk 0:02:07]} 25. Qg3 {[%clk 0:00:19]}  Kh7 {[%clk 0:01:55]} 26. Kh2 {[%clk 0:00:17]}  b6 {[%clk 0:01:55]} 27. Rc1 {[%clk 0:00:16]}  c5 {[%clk 0:01:54]} 28. Qf2 {[%clk 0:00:14]}  c4 {[%clk 0:01:52]} 29. Bd1 {[%clk 0:00:14]}  b5 {[%clk 0:01:53]} 30. Bh5 {[%clk 0:00:13]}  b4 {[%clk 0:01:45]} 31. Qg3 {[%clk 0:00:09]}  Bf7 {[%clk 0:01:44]} 32. Bg4 {[%clk 0:00:09]}  Rxa2 {[%clk 0:01:41]} 33. Bf5+ {[%clk 0:00:08]}  g6 {[%clk 0:01:39]} 34. Bc8 {[%clk 0:00:07]}  Be6 {[%clk 0:01:37]} 35. Bxe6 {[%clk 0:00:04]}  Qxe6 {[%clk 0:01:38]} 36. Rf1 {[%clk 0:00:03]}  b3 {[%clk 0:01:28]} 37. Rf6 {[%clk 0:00:04]}  Qe8 {[%clk 0:01:28]} 38. e6 {[%clk 0:00:04]}  Ra7 {[%clk 0:01:27]} 39. Qf4 {[%clk 0:00:03]}  Rg7 {[%clk 0:01:27]} 40. Rf8 {[%clk 0:00:03]}  Qe7 {[%clk 0:01:24]} 41. Qb8 {[%clk 0:00:03]}  g5 {[%clk 0:01:23]} 42. Rh8+ {[%clk 0:00:02]}  Kg6 {[%clk 0:01:24]} 43. Re8 {[%clk 0:00:01]}  Qf6 {[%clk 0:01:17]} 0-1


[Site "https://www.chess.com"]

[Event "Titled Tuesday Blitz August 17 2021"]
[White "Itgelt, Khuyagtsogt"]
[Black "Pultinevicius, Paulius"]
[WhiteFideId "4902912"]
[BlackFideId "12809390"]
[WhiteElo "2012"]
[BlackElo "2479"]
[Result "0-1"]
[Round "02"]
[TimeControl "180+1"]
[Date "2021.08.17"]
[WhiteClock "0:00:03"]
[BlackClock "0:01:22"]

1. e4 {[%clk 0:03:00]}  e5 {[%clk 0:02:43]} 2. Nf3 {[%clk 0:02:59]}  Nc6 {[%clk 0:02:43]} 3. Bc4 {[%clk 0:03:00]}  Bc5 {[%clk 0:02:42]} 4. c3 {[%clk 0:02:52]}  Nf6 {[%clk 0:02:41]} 5. d3 {[%clk 0:02:52]}  O-O {[%clk 0:02:40]} 6. O-O {[%clk 0:02:50]}  Re8 {[%clk 0:02:39]} 7. Nbd2 {[%clk 0:02:44]}  a6 {[%clk 0:02:38]} 8. a4 {[%clk 0:02:42]}  d6 {[%clk 0:02:36]} 9. Re1 {[%clk 0:02:32]}  h6 {[%clk 0:02:30]} 10. h3 {[%clk 0:02:31]}  Ba7 {[%clk 0:02:30]} 11. Nf1 {[%clk 0:02:24]}  Be6 {[%clk 0:02:30]} 12. Be3 {[%clk 0:01:59]}  Bxc4 {[%clk 0:02:24]} 13. dxc4 {[%clk 0:01:59]}  a5 {[%clk 0:02:13]} 14. N3d2 {[%clk 0:01:48]}  Nd7 {[%clk 0:02:03]} 15. Bxa7 {[%clk 0:01:44]}  Nxa7 {[%clk 0:02:03]} 16. Ne3 {[%clk 0:01:43]}  Nc5 {[%clk 0:02:03]} 17. Qc2 {[%clk 0:01:43]}  c6 {[%clk 0:02:02]} 18. Red1 {[%clk 0:01:28]}  Qc7 {[%clk 0:01:57]} 19. Nf3 {[%clk 0:01:14]}  Rad8 {[%clk 0:01:55]} 20. Rd2 {[%clk 0:01:14]}  Nc8 {[%clk 0:01:55]} 21. Rad1 {[%clk 0:01:09]}  Nb6 {[%clk 0:01:54]} 22. b3 {[%clk 0:01:07]}  g6 {[%clk 0:01:54]} 23. Ra1 {[%clk 0:00:27]}  Kg7 {[%clk 0:01:40]} 24. b4 {[%clk 0:00:25]}  Ne6 {[%clk 0:01:37]} 25. g3 {[%clk 0:00:21]}  Nd7 {[%clk 0:01:34]} 26. Rad1 {[%clk 0:00:19]}  Nf6 {[%clk 0:01:34]} 27. Kg2 {[%clk 0:00:10]}  Nh7 {[%clk 0:01:28]} 28. Rd3 {[%clk 0:00:09]}  Nhg5 {[%clk 0:01:27]} 29. Nxg5 {[%clk 0:00:09]}  Nxg5 {[%clk 0:01:26]} 30. f3 {[%clk 0:00:09]}  axb4 {[%clk 0:01:25]} 31. cxb4 {[%clk 0:00:09]}  Ne6 {[%clk 0:01:26]} 32. Qd2 {[%clk 0:00:08]}  Qb6 {[%clk 0:01:26]} 33. Nc2 {[%clk 0:00:05]}  Qa6 {[%clk 0:01:24]} 34. b5 {[%clk 0:00:04]}  Qxa4 {[%clk 0:01:22]} 35. bxc6 {[%clk 0:00:03]}  bxc6 {[%clk 0:01:22]} 36. Ra3 {[%clk 0:00:03]}  Qxc4 {[%clk 0:01:22]} 0-1


[Site "https://www.chess.com"]

[Event "Titled Tuesday Blitz August 17 2021"]
[White "Kadam, Om Manish"]
[Black "Swapnil, S. Dhopade"]
[WhiteFideId "45076294"]
[BlackFideId "5019184"]
[WhiteElo "1729"]
[BlackElo "2402"]
[Result "0-1"]
[Round "02"]
[TimeControl "180+1"]
[Date "2021.08.18"]
[WhiteClock "0:00:22"]
[BlackClock "0:00:22"]

1. e4 {[%clk 0:03:00]}  c6 {[%clk 0:02:59]} 2. c4 {[%clk 0:03:00]}  d5 {[%clk 0:03:00]} 3. exd5 {[%clk 0:03:01]}  Nf6 {[%clk 0:03:00]} 4. Nc3 {[%clk 0:03:01]}  cxd5 {[%clk 0:03:00]} 5. cxd5 {[%clk 0:03:02]}  Nxd5 {[%clk 0:03:00]} 6. Nf3 {[%clk 0:03:02]}  Nc6 {[%clk 0:03:00]} 7. d4 {[%clk 0:03:02]}  g6 {[%clk 0:02:59]} 8. Bc4 {[%clk 0:03:01]}  Nb6 {[%clk 0:02:59]} 9. Bb3 {[%clk 0:03:01]}  Bg7 {[%clk 0:02:59]} 10. Be3 {[%clk 0:03:01]}  O-O {[%clk 0:02:59]} 11. h3 {[%clk 0:03:01]}  Na5 {[%clk 0:02:56]} 12. Bc2 {[%clk 0:02:42]}  Nac4 {[%clk 0:02:53]} 13. Bc1 {[%clk 0:02:43]}  Be6 {[%clk 0:02:44]} 14. O-O {[%clk 0:02:42]}  Rc8 {[%clk 0:02:44]} 15. b3 {[%clk 0:02:39]}  Nd6 {[%clk 0:02:35]} 16. Bb2 {[%clk 0:02:38]}  Nd5 {[%clk 0:02:29]} 17. Nxd5 {[%clk 0:02:22]}  Bxd5 {[%clk 0:02:28]} 18. Ne5 {[%clk 0:02:23]}  Qa5 {[%clk 0:01:57]} 19. Bd3 {[%clk 0:02:15]}  Rc7 {[%clk 0:01:47]} 20. Qe2 {[%clk 0:02:10]}  Rfc8 {[%clk 0:01:45]} 21. Rfe1 {[%clk 0:01:53]}  e6 {[%clk 0:01:43]} 22. Qe3 {[%clk 0:01:39]}  Nf5 {[%clk 0:01:28]} 23. Qf4 {[%clk 0:01:35]}  Bh6 {[%clk 0:01:13]} 24. Qg4 {[%clk 0:01:22]}  Qd2 {[%clk 0:01:13]} 25. Re2 {[%clk 0:01:17]}  Qf4 {[%clk 0:01:12]} 26. Rae1 {[%clk 0:00:56]}  Qxg4 {[%clk 0:01:09]} 27. hxg4 {[%clk 0:00:55]}  Nd6 {[%clk 0:01:08]} 28. g3 {[%clk 0:00:55]}  a6 {[%clk 0:01:05]} 29. Ba3 {[%clk 0:00:55]}  Bf8 {[%clk 0:01:04]} 30. Bb2 {[%clk 0:00:52]}  Rd8 {[%clk 0:00:44]} 31. g5 {[%clk 0:00:50]}  h6 {[%clk 0:00:34]} 32. Ng4 {[%clk 0:00:32]}  hxg5 {[%clk 0:00:29]} 33. Nf6+ {[%clk 0:00:32]}  Kg7 {[%clk 0:00:30]} 34. Nxd5 {[%clk 0:00:33]}  exd5 {[%clk 0:00:30]} 35. Re5 {[%clk 0:00:34]}  Nf5 {[%clk 0:00:19]} 36. Bxf5 {[%clk 0:00:33]}  gxf5 {[%clk 0:00:20]} 37. Rxf5 {[%clk 0:00:34]}  f6 {[%clk 0:00:21]} 38. Re6 {[%clk 0:00:30]}  Rc6 {[%clk 0:00:21]} 39. Rfxf6 {[%clk 0:00:30]}  Rxe6 {[%clk 0:00:21]} 40. Rxe6 {[%clk 0:00:31]}  Bd6 {[%clk 0:00:18]} 41. Bc1 {[%clk 0:00:29]}  g4 {[%clk 0:00:17]} 42. Bg5 {[%clk 0:00:26]}  Rd7 {[%clk 0:00:18]} 43. Be3 {[%clk 0:00:25]}  Kf7 {[%clk 0:00:18]} 44. Rh6 {[%clk 0:00:25]}  Bf8 {[%clk 0:00:18]} 45. Rh4 {[%clk 0:00:25]}  Rc7 {[%clk 0:00:17]} 46. Rxg4 {[%clk 0:00:25]}  Rc2 {[%clk 0:00:18]} 47. Rf4+ {[%clk 0:00:26]}  Ke8 {[%clk 0:00:19]} 48. Rf5 {[%clk 0:00:25]}  Rxa2 {[%clk 0:00:18]} 49. Re5+ {[%clk 0:00:25]}  Kf7 {[%clk 0:00:18]} 50. Rxd5 {[%clk 0:00:26]}  Ke6 {[%clk 0:00:18]} 51. Re5+ {[%clk 0:00:26]}  Kd7 {[%clk 0:00:19]} 52. Rf5 {[%clk 0:00:26]}  Bd6 {[%clk 0:00:19]} 53. Rf7+ {[%clk 0:00:25]}  Kc6 {[%clk 0:00:19]} 54. d5+ {[%clk 0:00:26]}  Kxd5 {[%clk 0:00:20]} 55. Rxb7 {[%clk 0:00:25]}  Rc2 {[%clk 0:00:19]} 56. Rb6 {[%clk 0:00:25]}  Ra2 {[%clk 0:00:19]} 57. Kg2 {[%clk 0:00:24]}  a5 {[%clk 0:00:20]} 58. Kf3 {[%clk 0:00:24]}  Bb4 {[%clk 0:00:20]} 59. Rb5+ {[%clk 0:00:23]}  Kc6 {[%clk 0:00:20]} 60. Rf5 {[%clk 0:00:23]}  Rb2 {[%clk 0:00:21]} 61. g4 {[%clk 0:00:23]}  Rxb3 {[%clk 0:00:21]} 62. g5 {[%clk 0:00:23]}  a4 {[%clk 0:00:21]} 63. g6 {[%clk 0:00:23]}  Bc3 {[%clk 0:00:21]} 64. Rc5+ {[%clk 0:00:24]}  Kd6 {[%clk 0:00:22]} 65. Rc8 {[%clk 0:00:17]}  Ke6 {[%clk 0:00:20]} 66. Bh6 {[%clk 0:00:16]}  a3 {[%clk 0:00:20]} 67. g7 {[%clk 0:00:16]}  Bxg7+ {[%clk 0:00:19]} 68. Ke2 {[%clk 0:00:16]}  Bxh6 {[%clk 0:00:18]} 69. Rc6+ {[%clk 0:00:17]}  Kd5 {[%clk 0:00:19]} 70. Rxh6 {[%clk 0:00:17]}  Kc4 {[%clk 0:00:18]} 71. Ra6 {[%clk 0:00:18]}  Kc3 {[%clk 0:00:18]} 72. f4 {[%clk 0:00:18]}  Kb2 {[%clk 0:00:19]} 73. f5 {[%clk 0:00:17]}  a2 {[%clk 0:00:20]} 74. f6 {[%clk 0:00:17]}  a1=Q {[%clk 0:00:20]} 75. Rxa1 {[%clk 0:00:17]}  Kxa1 {[%clk 0:00:21]} 76. f7 {[%clk 0:00:18]}  Rb8 {[%clk 0:00:21]} 77. Ke3 {[%clk 0:00:19]}  Rf8 {[%clk 0:00:21]} 78. Ke4 {[%clk 0:00:20]}  Rxf7 {[%clk 0:00:22]} 79. Ke5 {[%clk 0:00:21]}  Rf1 {[%clk 0:00:22]} 80. Ke6 {[%clk 0:00:22]} 0-1


[Site "https://www.chess.com"]